[Event "Live Chess"]
[Site "Chess.com"]
[Date "2011.01.28"]
[Round "-"]
[White "hipposcottimus"]
[Black "PierrePou"]
[Result "0-1"]
[CurrentPosition "4rrk1/1p3ppp/6n1/p6Q/3q4/6B1/PPPn1RPP/4R2K w - -"]
[Timezone "UTC"]
[ECO "C50"]
[ECOUrl "https://www.chess.com/openings/Italian-Game-Hungarian-Defense-4.d4"]
[UTCDate "2011.01.28"]
[UTCTime "06:34:03"]
[WhiteElo "1587"]
[BlackElo "1532"]
[TimeControl "60"]
[Termination "PierrePou won on time"]
[StartTime "06:34:03"]
[EndDate "2011.01.28"]
[EndTime "06:36:09"]
[Link "https://www.chess.com/game/live/92170307"]

1. e4 {[%clk 0:01:00]} 1... e5 {[%clk 0:01:00]} 2. Nf3 {[%clk 0:00:58.5]} 2... Nc6 {[%clk 0:00:59.5]} 3. Bc4 {[%clk 0:00:58.2]} 3... Be7 {[%clk 0:00:58.6]} 4. d4 {[%clk 0:00:56]} 4... Nf6 {[%clk 0:00:58]} 5. dxe5 {[%clk 0:00:54.4]} 5... Ng4 {[%clk 0:00:56.8]} 6. O-O {[%clk 0:00:50.4]} 6... d5 {[%clk 0:00:55.2]} 7. exd5 {[%clk 0:00:48.7]} 7... Na5 {[%clk 0:00:51.2]} 8. d6 {[%clk 0:00:43.8]} 8... Bh4 {[%clk 0:00:45]} 9. dxc7 {[%clk 0:00:39.5]} 9... Qxc7 {[%clk 0:00:43.2]} 10. Nxh4 {[%clk 0:00:37.6]} 10... O-O {[%clk 0:00:39.8]} 11. Nf5 {[%clk 0:00:36.2]} 11... Qxc4 {[%clk 0:00:37.7]} 12. Nc3 {[%clk 0:00:33.9]} 12... Bxf5 {[%clk 0:00:34]} 13. f3 {[%clk 0:00:26]} 13... Nxe5 {[%clk 0:00:31.9]} 14. Ne4 {[%clk 0:00:15.8]} 14... Bxe4 {[%clk 0:00:28.2]} 15. fxe4 {[%clk 0:00:15.5]} 15... Qxe4 {[%clk 0:00:24.7]} 16. Bf4 {[%clk 0:00:13.9]} 16... Ng6 {[%clk 0:00:16.8]} 17. Qh5 {[%clk 0:00:13.2]} 17... Nc4 {[%clk 0:00:13.9]} 18. Bg3 {[%clk 0:00:05.5]} 18... Nd2 {[%clk 0:00:11.4]} 19. Rae1 {[%clk 0:00:05.2]} 19... Qd4+ {[%clk 0:00:09.2]} 20. Rf2 {[%clk 0:00:03.8]} 20... a5 {[%clk 0:00:05.4]} 21. Kh1 {[%clk 0:00:01.2]} 21... Rae8 {[%clk 0:00:03.7]} 0-1

[Event "Live Chess"]
[Site "Chess.com"]
[Date "2011.01.28"]
[Round "-"]
[White "khwaja"]
[Black "hipposcottimus"]
[Result "1/2-1/2"]
[CurrentPosition "4kr2/p1pR2p1/1p4q1/4Pp2/2P1bP2/7P/PP1Q2PK/6R1 b - -"]
[Timezone "UTC"]
[ECO "C23"]
[ECOUrl "https://www.chess.com/openings/Bishops-Opening-2...Nc6-3.Nc3"]
[UTCDate "2011.01.28"]
[UTCTime "03:58:15"]
[WhiteElo "1549"]
[BlackElo "1426"]
[TimeControl "600+2"]
[Termination "Game drawn by agreement"]
[StartTime "03:58:15"]
[EndDate "2011.01.28"]
[EndTime "04:09:48"]
[Link "https://www.chess.com/game/live/92137390"]

1. e4 {[%clk 0:10:00]} 1... e5 {[%clk 0:10:00]} 2. Bc4 {[%clk 0:10:00.7]} 2... Nc6 {[%clk 0:09:57.7]} 3. Nc3 {[%clk 0:10:01.6]} 3... Nf6 {[%clk 0:09:55.7]} 4. d3 {[%clk 0:10:01.6]} 4... d5 {[%clk 0:09:53.3]} 5. exd5 {[%clk 0:09:58.3]} 5... Nd4 {[%clk 0:09:45.4]} 6. h3 {[%clk 0:09:55.2]} 6... Bb4 {[%clk 0:09:46.2]} 7. Ne2 {[%clk 0:09:47]} 7... Nxd5 {[%clk 0:09:43.8]} 8. Bxd5 {[%clk 0:09:40.1]} 8... Qxd5 {[%clk 0:09:41.8]} 9. O-O {[%clk 0:09:38]} 9... Qc6 {[%clk 0:09:37]} 10. Nxd4 {[%clk 0:09:26.1]} 10... exd4 {[%clk 0:09:38]} 11. Ne4 {[%clk 0:09:25.9]} 11... O-O {[%clk 0:09:36.5]} 12. f4 {[%clk 0:09:23.4]} 12... f5 {[%clk 0:09:24.2]} 13. Ng5 {[%clk 0:09:17.5]} 13... Rf6 {[%clk 0:09:16]} 14. Nf3 {[%clk 0:09:14.7]} 14... b6 {[%clk 0:09:12.4]} 15. Nxd4 {[%clk 0:09:08.9]} 15... Qd5 {[%clk 0:09:04.4]} 16. Nf3 {[%clk 0:08:55.5]} 16... Bb7 {[%clk 0:09:03]} 17. Be3 {[%clk 0:08:48]} 17... Re8 {[%clk 0:08:59.3]} 18. Bd4 {[%clk 0:08:29.9]} 18... Rg6 {[%clk 0:08:46.5]} 19. Kh2 {[%clk 0:08:14.3]} 19... Bc5 {[%clk 0:08:32.6]} 20. Be5 {[%clk 0:08:04.8]} 20... Bd6 {[%clk 0:07:41.5]} 21. d4 {[%clk 0:07:55.5]} 21... Qe6 {[%clk 0:06:35.4]} 22. Qd3 {[%clk 0:07:37.7]} 22... Be4 {[%clk 0:06:35.4]} 23. Qe2 {[%clk 0:07:29.5]} 23... h5 {[%clk 0:06:17]} 24. c4 {[%clk 0:07:29.4]} 24... h4 {[%clk 0:06:07.1]} 25. Nxh4 {[%clk 0:07:11.1]} 25... Bxe5 {[%clk 0:06:03.1]} 26. Nxg6 {[%clk 0:06:48.2]} 26... Qxg6 {[%clk 0:05:52]} 27. dxe5 {[%clk 0:06:47.9]} 27... Rd8 {[%clk 0:05:49.9]} 28. Rad1 {[%clk 0:06:44.3]} 28... Rf8 {[%clk 0:05:28]} 29. Rg1 {[%clk 0:05:54.4]} 29... Kf7 {[%clk 0:04:50.3]} 30. Rd7+ {[%clk 0:05:52.8]} 30... Ke8 {[%clk 0:04:51.3]} 31. Qd2 {[%clk 0:05:53]} 1/2-1/2

[Event "Live Chess"]
[Site "Chess.com"]
[Date "2011.01.28"]
[Round "-"]
[White "hipposcottimus"]
[Black "tjkeyes"]
[Result "1-0"]
[CurrentPosition "4r1k1/pp3ppp/2p1b3/1N6/1r1NR3/1PP5/P5PP/R5K1 b - -"]
[Timezone "UTC"]
[ECO "A06"]
[ECOUrl "https://www.chess.com/openings/Reti-Opening-Tennison-Gambit"]
[UTCDate "2011.01.28"]
[UTCTime "03:29:45"]
[WhiteElo "1423"]
[BlackElo "1449"]
[TimeControl "600"]
[Termination "hipposcottimus won by resignation"]
[StartTime "03:29:45"]
[EndDate "2011.01.28"]
[EndTime "03:37:55"]
[Link "https://www.chess.com/game/live/92131316"]

1. e4 {[%clk 0:10:00]} 1... d5 {[%clk 0:10:00]} 2. Nf3 {[%clk 0:09:59.5]} 2... dxe4 {[%clk 0:09:55.8]} 3. Ng5 {[%clk 0:09:58.9]} 3... Nf6 {[%clk 0:09:46]} 4. f3 {[%clk 0:09:51]} 4... exf3 {[%clk 0:09:41.4]} 5. Nxf3 {[%clk 0:09:50.2]} 5... e5 {[%clk 0:09:33.9]} 6. Be2 {[%clk 0:09:39.2]} 6... Bc5 {[%clk 0:09:24.2]} 7. d4 {[%clk 0:09:32.1]} 7... exd4 {[%clk 0:09:21.8]} 8. Bd3 {[%clk 0:09:29.6]} 8... Qe7+ {[%clk 0:09:07.6]} 9. Qe2 {[%clk 0:09:20.7]} 9... Qxe2+ {[%clk 0:09:04.1]} 10. Bxe2 {[%clk 0:09:20.4]} 10... Bg4 {[%clk 0:08:58.2]} 11. Nbd2 {[%clk 0:08:48.9]} 11... O-O {[%clk 0:08:51.9]} 12. Nb3 {[%clk 0:08:42.4]} 12... Bb4+ {[%clk 0:08:20.6]} 13. Bd2 {[%clk 0:08:33.7]} 13... Bxd2+ {[%clk 0:08:17.9]} 14. Nbxd2 {[%clk 0:08:32.6]} 14... Nc6 {[%clk 0:08:14.2]} 15. O-O {[%clk 0:08:31]} 15... Rfe8 {[%clk 0:08:08.5]} 16. Bb5 {[%clk 0:08:27.4]} 16... Re6 {[%clk 0:08:01.1]} 17. Bxc6 {[%clk 0:08:24.1]} 17... Rxc6 {[%clk 0:07:43.1]} 18. Nxd4 {[%clk 0:08:19.5]} 18... Rd6 {[%clk 0:07:41.6]} 19. N2b3 {[%clk 0:08:10.8]} 19... Re8 {[%clk 0:07:24.6]} 20. Nb5 {[%clk 0:08:03.4]} 20... Rc6 {[%clk 0:06:54.4]} 21. Rf2 {[%clk 0:07:47.4]} 21... Ne4 {[%clk 0:06:33.5]} 22. Rf4 {[%clk 0:07:43.5]} 22... Be6 {[%clk 0:06:17.3]} 23. N3d4 {[%clk 0:07:27.7]} 23... Rc4 {[%clk 0:05:56.8]} 24. Rxe4 {[%clk 0:07:21.7]} 24... c6 {[%clk 0:05:45.2]} 25. b3 {[%clk 0:07:08.1]} 25... Rb4 {[%clk 0:05:23]} 26. c3 {[%clk 0:06:40.6]} 1-0

[Event "Live Chess"]
[Site "Chess.com"]
[Date "2011.01.28"]
[Round "-"]
[White "hipposcottimus"]
[Black "madturk"]
[Result "0-1"]
[CurrentPosition "2r5/8/2Pk1p2/4p3/7P/5PK1/4n3/2R5 w - -"]
[Timezone "UTC"]
[ECO "C41"]
[ECOUrl "https://www.chess.com/openings/Philidor-Defense-3.d4-Bg4-4.dxe5"]
[UTCDate "2011.01.28"]
[UTCTime "03:16:12"]
[WhiteElo "1414"]
[BlackElo "1465"]
[TimeControl "600"]
[Termination "madturk won by resignation"]
[StartTime "03:16:12"]
[EndDate "2011.01.28"]
[EndTime "03:29:01"]
[Link "https://www.chess.com/game/live/92128023"]

1. e4 {[%clk 0:10:00]} 1... e5 {[%clk 0:10:00]} 2. Nf3 {[%clk 0:09:57]} 2... d6 {[%clk 0:09:58.1]} 3. d4 {[%clk 0:09:53.8]} 3... Bg4 {[%clk 0:09:55.7]} 4. dxe5 {[%clk 0:09:51.9]} 4... Bxf3 {[%clk 0:09:54.9]} 5. Qxf3 {[%clk 0:09:50.5]} 5... dxe5 {[%clk 0:09:52.4]} 6. Bc4 {[%clk 0:09:48.3]} 6... Qf6 {[%clk 0:09:48.5]} 7. Qb3 {[%clk 0:09:40.1]} 7... b6 {[%clk 0:09:41.1]} 8. O-O {[%clk 0:09:39]} 8... Bc5 {[%clk 0:09:39]} 9. Nc3 {[%clk 0:09:31]} 9... c6 {[%clk 0:09:34.5]} 10. Kh1 {[%clk 0:09:07.4]} 10... b5 {[%clk 0:09:32.1]} 11. Bxb5 {[%clk 0:09:03.6]} 11... cxb5 {[%clk 0:09:30]} 12. Nxb5 {[%clk 0:08:58.9]} 12... Qb6 {[%clk 0:09:20.8]} 13. Qd5 {[%clk 0:08:28.8]} 13... Nc6 {[%clk 0:09:12.3]} 14. Nd6+ {[%clk 0:08:24.2]} 14... Bxd6 {[%clk 0:09:08.6]} 15. Qxd6 {[%clk 0:08:23.9]} 15... Rd8 {[%clk 0:09:06.9]} 16. Qa3 {[%clk 0:07:53.6]} 16... Nge7 {[%clk 0:09:03.2]} 17. Be3 {[%clk 0:07:44.9]} 17... Qa5 {[%clk 0:08:51.1]} 18. Qxa5 {[%clk 0:06:49.5]} 18... Nxa5 {[%clk 0:08:47.9]} 19. Bxa7 {[%clk 0:06:49.1]} 19... Nc4 {[%clk 0:08:46.4]} 20. Bc5 {[%clk 0:06:37.5]} 20... Nxb2 {[%clk 0:08:34.3]} 21. Rab1 {[%clk 0:06:24.9]} 21... Nc4 {[%clk 0:08:31.6]} 22. Rb7 {[%clk 0:06:17]} 22... Ng6 {[%clk 0:08:17]} 23. Rfb1 {[%clk 0:05:38.8]} 23... f6 {[%clk 0:07:27.5]} 24. Rxg7 {[%clk 0:05:32]} 24... Nd2 {[%clk 0:07:21.8]} 25. Rbb7 {[%clk 0:05:20.4]} 25... Nxe4 {[%clk 0:07:13.7]} 26. Rge7+ {[%clk 0:03:42.7]} 26... Nxe7 {[%clk 0:07:08.3]} 27. Rxe7+ {[%clk 0:03:39.6]} 27... Kf8 {[%clk 0:07:04]} 28. Rd7+ {[%clk 0:03:31.5]} 28... Nxc5 {[%clk 0:07:01.7]} 29. Rxd8+ {[%clk 0:03:29.8]} 29... Kg7 {[%clk 0:07:00.8]} 30. Rd5 {[%clk 0:03:26.7]} 30... Ne4 {[%clk 0:06:55.2]} 31. f3 {[%clk 0:03:19.9]} 31... Nc3 {[%clk 0:06:48.9]} 32. Rc5 {[%clk 0:03:12.1]} 32... Nxa2 {[%clk 0:06:45.1]} 33. c4 {[%clk 0:03:06.1]} 33... Rd8 {[%clk 0:06:40.5]} 34. h3 {[%clk 0:03:00.5]} 34... h5 {[%clk 0:06:36.3]} 35. Kh2 {[%clk 0:02:59.5]} 35... h4 {[%clk 0:06:34.5]} 36. Rc7+ {[%clk 0:02:54.6]} 36... Kg6 {[%clk 0:06:31.7]} 37. c5 {[%clk 0:02:54.4]} 37... Nb4 {[%clk 0:06:19.2]} 38. Rb7 {[%clk 0:02:42.4]} 38... Nd5 {[%clk 0:06:13.2]} 39. Rb5 {[%clk 0:02:14.9]} 39... Rc8 {[%clk 0:06:08.2]} 40. c6 {[%clk 0:02:12.1]} 40... Nf4 {[%clk 0:06:06]} 41. Rc5 {[%clk 0:02:05.8]} 41... Kf5 {[%clk 0:06:00.9]} 42. g3 {[%clk 0:01:59.4]} 42... hxg3+ {[%clk 0:05:57.4]} 43. Kxg3 {[%clk 0:01:57.5]} 43... Ke6 {[%clk 0:05:56.1]} 44. h4 {[%clk 0:01:54.3]} 44... Kd6 {[%clk 0:05:54.3]} 45. Rc1 {[%clk 0:01:45.2]} 45... Ne2+ {[%clk 0:05:48.6]} 0-1

[Event "Live Chess"]
[Site "Chess.com"]
[Date "2011.01.28"]
[Round "-"]
[White "hipposcottimus"]
[Black "Hawkeye881"]
[Result "0-1"]
[CurrentPosition "4rk2/b4pr1/8/7p/3P1Pp1/6P1/4RK1P/2q5 w - -"]
[Timezone "UTC"]
[ECO "C50"]
[ECOUrl "https://www.chess.com/openings/Italian-Game-3...d6-4.d4-exd4-5.Nxd4"]
[UTCDate "2011.01.28"]
[UTCTime "02:58:25"]
[WhiteElo "1421"]
[BlackElo "1290"]
[TimeControl "240+10"]
[Termination "Hawkeye881 won by resignation"]
[StartTime "02:58:25"]
[EndDate "2011.01.28"]
[EndTime "03:10:58"]
[Link "https://www.chess.com/game/live/92124344"]

1. e4 {[%clk 0:04:00]} 1... e5 {[%clk 0:04:00]} 2. Nf3 {[%clk 0:04:07.5]} 2... Nc6 {[%clk 0:04:05.8]} 3. Bc4 {[%clk 0:04:15.9]} 3... d6 {[%clk 0:04:06.5]} 4. d4 {[%clk 0:04:22.3]} 4... exd4 {[%clk 0:04:12.6]} 5. Nxd4 {[%clk 0:04:29]} 5... Nxd4 {[%clk 0:04:17.6]} 6. Qxd4 {[%clk 0:04:38.6]} 6... Nf6 {[%clk 0:04:21.6]} 7. Nc3 {[%clk 0:04:44.6]} 7... c5 {[%clk 0:04:21.1]} 8. Qe3 {[%clk 0:04:39.2]} 8... Ng4 {[%clk 0:04:20.2]} 9. Qf4 {[%clk 0:04:26.7]} 9... Ne5 {[%clk 0:04:12.8]} 10. Bd5 {[%clk 0:04:28.1]} 10... Be7 {[%clk 0:04:03.7]} 11. Qg3 {[%clk 0:04:19.4]} 11... g6 {[%clk 0:03:54.1]} 12. Bh6 {[%clk 0:04:23.9]} 12... Ng4 {[%clk 0:03:55.9]} 13. Bg7 {[%clk 0:04:25.5]} 13... Rg8 {[%clk 0:03:58.5]} 14. f3 {[%clk 0:04:34.9]} 14... Ne3 {[%clk 0:03:56.8]} 15. Qf2 {[%clk 0:04:02.2]} 15... Nxd5 {[%clk 0:03:53.8]} 16. e5 {[%clk 0:04:01.5]} 16... Nxc3 {[%clk 0:03:53]} 17. bxc3 {[%clk 0:04:01.8]} 17... Rxg7 {[%clk 0:03:58.6]} 18. exd6 {[%clk 0:04:08.3]} 18... Qxd6 {[%clk 0:04:04.2]} 19. Rd1 {[%clk 0:04:14.2]} 19... Qe6+ {[%clk 0:04:05.6]} 20. Kf1 {[%clk 0:04:18]} 20... Qc4+ {[%clk 0:04:08.4]} 21. Rd3 {[%clk 0:04:25.1]} 21... Bf5 {[%clk 0:04:11]} 22. Qe3 {[%clk 0:04:10]} 22... Bxd3+ {[%clk 0:04:16.3]} 23. cxd3 {[%clk 0:04:19.7]} 23... Qxa2 {[%clk 0:04:16.3]} 24. g3 {[%clk 0:04:14.5]} 24... Qb1+ {[%clk 0:04:14.2]} 25. Kg2 {[%clk 0:04:21.8]} 25... Qc2+ {[%clk 0:04:09]} 26. Kh3 {[%clk 0:04:30.9]} 26... Qxc3 {[%clk 0:04:15.5]} 27. Re1 {[%clk 0:04:29.5]} 27... Qf6 {[%clk 0:04:13.8]} 28. Qxc5 {[%clk 0:04:30.7]} 28... Kf8 {[%clk 0:04:13.6]} 29. Qd5 {[%clk 0:04:28.2]} 29... Rd8 {[%clk 0:04:09.3]} 30. Qxb7 {[%clk 0:04:35.1]} 30... g5 {[%clk 0:04:07.2]} 31. Qxa7 {[%clk 0:04:25.9]} 31... h5 {[%clk 0:04:13.9]} 32. Kg2 {[%clk 0:04:17.1]} 32... g4 {[%clk 0:04:20.1]} 33. f4 {[%clk 0:04:13.2]} 33... Qb2+ {[%clk 0:04:11.9]} 34. Kf1 {[%clk 0:04:09.3]} 34... Re8 {[%clk 0:03:59]} 35. Re2 {[%clk 0:04:07.6]} 35... Qc1+ {[%clk 0:03:45]} 36. Kf2 {[%clk 0:04:05.8]} 36... Bc5+ {[%clk 0:03:48.5]} 37. d4 {[%clk 0:04:11.2]} 37... Bxa7 {[%clk 0:03:54.6]} 0-1

[Event "Live Chess"]
[Site "Chess.com"]
[Date "2011.01.28"]
[Round "-"]
[White "wesley12"]
[Black "hipposcottimus"]
[Result "0-1"]
[CurrentPosition "3r2nr/kpp2ppp/8/4p3/4q1B1/2P5/PP3PPP/R3K2R w KQ -"]
[Timezone "UTC"]
[ECO "C45"]
[ECOUrl "https://www.chess.com/openings/Scotch-Game"]
[UTCDate "2011.01.28"]
[UTCTime "02:48:43"]
[WhiteElo "1331"]
[BlackElo "1431"]
[TimeControl "600"]
[Termination "hipposcottimus won by resignation"]
[StartTime "02:48:43"]
[EndDate "2011.01.28"]
[EndTime "02:54:16"]
[Link "https://www.chess.com/game/live/92122131"]

1. e4 {[%clk 0:10:00]} 1... e5 {[%clk 0:10:00]} 2. Nf3 {[%clk 0:09:57.8]} 2... Nc6 {[%clk 0:09:58.8]} 3. d4 {[%clk 0:09:55.9]} 3... d5 {[%clk 0:09:55.5]} 4. Nc3 {[%clk 0:09:43.4]} 4... dxe4 {[%clk 0:09:42.5]} 5. Nxe4 {[%clk 0:09:40.6]} 5... Bg4 {[%clk 0:09:37.6]} 6. d5 {[%clk 0:09:28.3]} 6... Nd4 {[%clk 0:09:33.2]} 7. Be2 {[%clk 0:09:20.9]} 7... Qxd5 {[%clk 0:09:26.8]} 8. Qd3 {[%clk 0:08:35.7]} 8... O-O-O {[%clk 0:09:08.4]} 9. Be3 {[%clk 0:08:18.2]} 9... Nxf3+ {[%clk 0:09:03.6]} 10. Bxf3 {[%clk 0:08:08.8]} 10... Qa5+ {[%clk 0:09:02.5]} 11. Qc3 {[%clk 0:08:02]} 11... Bb4 {[%clk 0:08:46.8]} 12. Bxg4+ {[%clk 0:07:29.7]} 12... Kb8 {[%clk 0:08:42.8]} 13. Bxa7+ {[%clk 0:06:38.5]} 13... Kxa7 {[%clk 0:08:31.2]} 14. Qxb4 {[%clk 0:06:15.6]} 14... Qxb4+ {[%clk 0:08:28.1]} 15. c3 {[%clk 0:06:09]} 15... Qxe4+ {[%clk 0:08:25.7]} 0-1

[Event "Live Chess"]
[Site "Chess.com"]
[Date "2011.01.28"]
[Round "-"]
[White "pagaran_n"]
[Black "hipposcottimus"]
[Result "1-0"]
[CurrentPosition "r6k/5Q1p/7q/pp3p2/8/1BbP4/P5PP/1R4K1 w - -"]
[Timezone "UTC"]
[ECO "C20"]
[ECOUrl "https://www.chess.com/openings/Kings-Pawn-Opening-Wayward-Queen-Attack-2...Nc6-3.Bc4"]
[UTCDate "2011.01.28"]
[UTCTime "02:40:25"]
[WhiteElo "1447"]
[BlackElo "1425"]
[TimeControl "600"]
[Termination "pagaran_n won by resignation"]
[StartTime "02:40:25"]
[EndDate "2011.01.28"]
[EndTime "02:47:37"]
[Link "https://www.chess.com/game/live/92120262"]

1. e4 {[%clk 0:10:00]} 1... e5 {[%clk 0:10:00]} 2. Qh5 {[%clk 0:09:57.5]} 2... Nc6 {[%clk 0:09:55.8]} 3. Bc4 {[%clk 0:09:49.5]} 3... g6 {[%clk 0:09:55.3]} 4. Qf3 {[%clk 0:09:45.8]} 4... Nf6 {[%clk 0:09:55]} 5. Nc3 {[%clk 0:09:41.7]} 5... Nd4 {[%clk 0:09:53]} 6. Qd1 {[%clk 0:09:39.8]} 6... Bg7 {[%clk 0:09:36.5]} 7. d3 {[%clk 0:09:38.4]} 7... O-O {[%clk 0:09:34.2]} 8. Nf3 {[%clk 0:09:35.8]} 8... d6 {[%clk 0:09:31.3]} 9. Nxd4 {[%clk 0:09:33.3]} 9... exd4 {[%clk 0:09:30]} 10. Nd5 {[%clk 0:09:31.6]} 10... c6 {[%clk 0:09:25.7]} 11. Nxf6+ {[%clk 0:09:28.8]} 11... Qxf6 {[%clk 0:09:18.5]} 12. O-O {[%clk 0:09:27.3]} 12... Qe5 {[%clk 0:09:09.5]} 13. f4 {[%clk 0:09:19]} 13... Qe8 {[%clk 0:09:03.2]} 14. f5 {[%clk 0:09:16.6]} 14... d5 {[%clk 0:09:01.2]} 15. exd5 {[%clk 0:09:12.5]} 15... b5 {[%clk 0:08:53.8]} 16. Bb3 {[%clk 0:09:02.1]} 16... Bxf5 {[%clk 0:08:47.3]} 17. dxc6 {[%clk 0:08:55.5]} 17... Qxc6 {[%clk 0:08:42.6]} 18. c4 {[%clk 0:08:52.6]} 18... dxc3 {[%clk 0:08:30.3]} 19. bxc3 {[%clk 0:08:45.5]} 19... Bxc3 {[%clk 0:08:26.1]} 20. Rb1 {[%clk 0:08:35]} 20... a5 {[%clk 0:08:15.3]} 21. Rxf5 {[%clk 0:08:14.7]} 21... gxf5 {[%clk 0:07:53.6]} 22. Bh6 {[%clk 0:08:05.4]} 22... Rfe8 {[%clk 0:07:32.8]} 23. Qh5 {[%clk 0:07:59.5]} 23... Re7 {[%clk 0:05:24.6]} 24. Qg5+ {[%clk 0:07:56.5]} 24... Qg6 {[%clk 0:05:15.7]} 25. Qxe7 {[%clk 0:07:52.7]} 25... Qxh6 {[%clk 0:05:11.9]} 26. Qxf7+ {[%clk 0:07:50.9]} 26... Kh8 {[%clk 0:05:10.1]} 1-0

[Event "Live Chess"]
[Site "Chess.com"]
[Date "2011.01.28"]
[Round "-"]
[White "hipposcottimus"]
[Black "jumping5on5"]
[Result "0-1"]
[CurrentPosition "8/8/8/8/2kp3p/p7/8/1K6 w - -"]
[Timezone "UTC"]
[ECO "B20"]
[ECOUrl "https://www.chess.com/openings/Sicilian-Defense"]
[UTCDate "2011.01.28"]
[UTCTime "00:41:27"]
[WhiteElo "1433"]
[BlackElo "1584"]
[TimeControl "300+3"]
[Termination "jumping5on5 won on time"]
[StartTime "00:41:27"]
[EndDate "2011.01.28"]
[EndTime "00:56:05"]
[Link "https://www.chess.com/game/live/92093955"]

1. e4 {[%clk 0:05:00]} 1... c5 {[%clk 0:05:00]} 2. Bb5 {[%clk 0:05:00]} 2... a6 {[%clk 0:04:57.6]} 3. Be2 {[%clk 0:05:02.3]} 3... Nc6 {[%clk 0:04:58.5]} 4. c4 {[%clk 0:05:04.9]} 4... e5 {[%clk 0:04:59]} 5. d3 {[%clk 0:05:05.6]} 5... d6 {[%clk 0:05:00.1]} 6. Nc3 {[%clk 0:04:57.4]} 6... h6 {[%clk 0:05:00.8]} 7. Be3 {[%clk 0:04:59.3]} 7... Nf6 {[%clk 0:05:00.7]} 8. Nf3 {[%clk 0:05:01]} 8... Ng4 {[%clk 0:05:00.5]} 9. O-O {[%clk 0:05:02.7]} 9... Nxe3 {[%clk 0:05:01.6]} 10. fxe3 {[%clk 0:05:05.5]} 10... Be7 {[%clk 0:04:59.4]} 11. d4 {[%clk 0:05:07.7]} 11... O-O {[%clk 0:04:50.5]} 12. d5 {[%clk 0:04:50.9]} 12... Na7 {[%clk 0:04:44]} 13. Ne1 {[%clk 0:04:29.7]} 13... Bg5 {[%clk 0:04:43.5]} 14. Rf3 {[%clk 0:04:25.8]} 14... Bg4 {[%clk 0:04:40.2]} 15. Rg3 {[%clk 0:04:27.9]} 15... f5 {[%clk 0:04:28.5]} 16. Bxg4 {[%clk 0:04:20.5]} 16... fxg4 {[%clk 0:04:29.1]} 17. Qxg4 {[%clk 0:04:22]} 17... Nc8 {[%clk 0:04:15.3]} 18. Nf3 {[%clk 0:04:01.6]} 18... Bxe3+ {[%clk 0:04:12.7]} 19. Kh1 {[%clk 0:03:59.5]} 19... Rf7 {[%clk 0:04:08.5]} 20. Nh4 {[%clk 0:03:30.1]} 20... Qf6 {[%clk 0:03:50.2]} 21. Nf5 {[%clk 0:03:29.8]} 21... Bf4 {[%clk 0:03:46.7]} 22. Rh3 {[%clk 0:03:06.3]} 22... Ne7 {[%clk 0:03:45.4]} 23. g3 {[%clk 0:02:55.5]} 23... Nxf5 {[%clk 0:03:33]} 24. gxf4 {[%clk 0:02:54.1]} 24... Ne7 {[%clk 0:02:59.5]} 25. f5 {[%clk 0:02:48.7]} 25... Kh7 {[%clk 0:02:51.5]} 26. Ne2 {[%clk 0:02:37.5]} 26... Rg8 {[%clk 0:02:51.9]} 27. Ng3 {[%clk 0:02:33.2]} 27... g6 {[%clk 0:02:50.3]} 28. Rg1 {[%clk 0:00:51]} 28... gxf5 {[%clk 0:02:47.3]} 29. Qh5 {[%clk 0:00:40.1]} 29... Rg5 {[%clk 0:02:32.9]} 30. Nxf5 {[%clk 0:00:11.7]} 30... Rxh5 {[%clk 0:02:20.3]} 31. Rxh5 {[%clk 0:00:13.2]} 31... Nxf5 {[%clk 0:02:05.6]} 32. exf5 {[%clk 0:00:13.6]} 32... Rg7 {[%clk 0:02:04.6]} 33. Rf1 {[%clk 0:00:12.6]} 33... Rg5 {[%clk 0:02:01.6]} 34. Rxg5 {[%clk 0:00:08.1]} 34... hxg5 {[%clk 0:01:45.7]} 35. a3 {[%clk 0:00:09.4]} 35... b5 {[%clk 0:01:46.2]} 36. cxb5 {[%clk 0:00:08.4]} 36... axb5 {[%clk 0:01:47.7]} 37. b3 {[%clk 0:00:09.4]} 37... e4 {[%clk 0:01:47.3]} 38. b4 {[%clk 0:00:10.7]} 38... c4 {[%clk 0:01:40.7]} 39. a4 {[%clk 0:00:08.7]} 39... bxa4 {[%clk 0:01:35.3]} 40. b5 {[%clk 0:00:10.2]} 40... Qb2 {[%clk 0:01:20]} 41. f6 {[%clk 0:00:08.6]} 41... Qxb5 {[%clk 0:01:08.8]} 42. f7 {[%clk 0:00:10.9]} 42... Qb8 {[%clk 0:01:04]} 43. f8=Q {[%clk 0:00:11.8]} 43... Qxf8 {[%clk 0:01:05.5]} 44. Rxf8 {[%clk 0:00:14.5]} 44... Kg7 {[%clk 0:01:06.8]} 45. Rf2 {[%clk 0:00:16.6]} 45... a3 {[%clk 0:01:02]} 46. Rc2 {[%clk 0:00:16]} 46... e3 {[%clk 0:01:01.4]} 47. Kg1 {[%clk 0:00:15.7]} 47... Kf6 {[%clk 0:00:59.5]} 48. Kf1 {[%clk 0:00:16.4]} 48... Ke5 {[%clk 0:01:00.3]} 49. Ke2 {[%clk 0:00:19.1]} 49... Kxd5 {[%clk 0:01:01.9]} 50. Kxe3 {[%clk 0:00:21]} 50... Kc5 {[%clk 0:01:02.5]} 51. Kd2 {[%clk 0:00:22.7]} 51... d5 {[%clk 0:01:03.9]} 52. Kc1 {[%clk 0:00:16.3]} 52... Kb4 {[%clk 0:01:04.3]} 53. Kb1 {[%clk 0:00:13.6]} 53... d4 {[%clk 0:01:05.3]} 54. h4 {[%clk 0:00:10.5]} 54... gxh4 {[%clk 0:01:05.8]} 55. Rxc4+ {[%clk 0:00:13.2]} 55... Kxc4 {[%clk 0:01:06.3]} 0-1